bitfinex-derivatives/quotes_ETHF0:USTF0_20250326
["timestamp","ask_amount","ask_price","bid_price","bid_amount"]
[1743006057073,1.3477,2013.0,2012.8,1.3052]
[1743006057262,1.3477,2013.0,2012.7,0.00744361]
[1743006057457,0.649,2012.9,2012.7,0.00744361]
[1743006057667,1.3477,2012.8,2012.7,0.00744361]
[1743006064473,7.2127,2012.8,2011.5,9.4511109]
[1743006064668,3.2078,2012.6,2012.1,1.3117]
[1743006065067,2.0131,2012.5,2012.1,1.3117]
[1743006065269,1.2997,2012.4,2012.1,1.3117]
[1743006065469,0.6583,2012.3,2012.1,1.3117]
[1743006065664,1.2997,2012.2,2012.1,1.3117]
[1743006065864,0.6583,2012.3,2012.1,1.3117]
[1743006065865,5.83,2012.8,2012.1,1.3117]
[1743006066068,3.2078,2012.9,2012.3,3.2078]
[1743006066069,0.00744361,2012.4,2012.3,3.2078]
[1743006066268,0.00744361,2012.4,2012.3,5.875]
[1743006066669,0.00744361,2012.4,2012.3,46.675]
[1743006066872,0.00744361,2012.4,2012.3,49.305]
[1743006067179,6.5728,2013.5,2012.3,49.305]
[1743006067473,0.6583,2013.4,2012.8,3.2078]
[1743006067669,0.6583,2013.4,2012.9,5.4357]
[1743006067670,1.3236,2013.3,2012.9,5.4357]
[1743006068169,1.33104361,2013.3,2012.9,5.4357]
[1743006069269,0.00744361,2013.3,2013.1,3.2078]
[1743006069470,0.00744361,2013.3,2013.2,4.7781]
[1743006069671,3.2078,2013.8,2013.2,10.8781]
[1743006069873,3.2078,2013.8,2013.5,3.2078]
[1743006070175,4.5314,2014.1,2013.6,2.0019]
[1743006070477,4.5314,2014.1,2013.5,3.2078]
[1743006070676,4.5314,2014.1,2013.3,3.365]
[1743006070677,3.2078,2013.8,2013.3,3.365]
[1743006070973,2.7662,2013.7,2013.6,0.00744361]
[1743006071173,6.1302,2013.7,2013.1,2.0019]
[1743006071572,3.2078,2013.5,2013.1,2.0019]
[1743006071773,1.3623,2013.4,2013.1,2.0019]
[1743006071968,0.6943,2013.3,2013.1,2.0019]
[1743006072169,1.3623,2013.2,2013.1,2.0019]
[1743006072776,1.3623,2013.2,2013.0,0.00744361]
[1743006073176,1.3623,2013.2,2013.0,1.40024361]
[1743006074075,1.3623,2013.2,2013.0,0.00744361]
[1743006074280,4.5701,2013.2,2013.0,0.00744361]
[1743006075382,1.3623,2013.2,2013.0,2.05034361]
[1743006075770,1.3749,2013.3,2013.0,2.05034361]
[1743006075771,0.6943,2013.3,2013.0,2.05034361]
[1743006075975,2.0138,2013.5,2013.2,3.2078]
[1743006076181,2.0138,2013.5,2013.3,1.4194]
[1743006077474,1.3606,2013.5,2013.3,1.4194]
[1743006077674,3.2078,2013.7,2013.4,0.6995]
[1743006077976,1.3828,2013.8,2013.5,4.6272]
[1743006078678,1.3828,2013.8,2013.5,5.7972]
[1743006078881,0.00744361,2014.0,2013.6,3.364]
[1743006079082,1.39024361,2014.0,2013.7,1.4194]
[1743006079277,1.39024361,2014.0,2013.8,0.6995]
[1743006079472,1.39024361,2014.0,2013.9,1.348]
[1743006080278,1.39024361,2014.0,2013.7,40.8]
[1743006080491,1.39024361,2014.0,2013.8,4.5558]
[1743006080685,1.3372,2014.2,2013.9,3.363]
[1743006080990,3.8832,2014.6,2014.1,3.2078]
[1743006081184,1.3372,2014.5,2014.2,1.348]
[1743006081485,1.3372,2014.5,2014.2,2.0009]
[1743006082883,0.00744361,2014.6,2014.4,3.2078]
[1743006083073,0.00744361,2014.6,2014.5,1.3554]
[1743006084784,0.00744361,2014.6,2014.5,2.0467]
[1743006091194,0.6754,2015.1,2014.5,3.2567]
[1743006091395,1.429,2015.0,2014.7,3.2078]
[1743006091585,1.429,2015.0,2014.8,1.3778]
[1743006095084,1.429,2015.0,2014.8,4.7388]
[1743006096198,1.429,2015.0,2014.9,1.297]
[1743006097399,0.68284361,2015.1,2014.9,1.297]
[1743006097400,0.00744361,2015.1,2014.9,1.297]
[1743006097601,3.2078,2015.5,2015.0,3.9006]
[1743006097901,2.0608,2015.6,2015.1,4.7162]
[1743006098102,2.0608,2015.6,2015.2,42.1552]
[1743006098710,2.06824361,2015.6,2015.2,42.16264361]
[1743006098905,2.06824361,2015.6,2015.2,1.36264361]
[1743006101409,2.06824361,2015.6,2015.2,0.00744361]
[1743006101707,3.2078,2015.4,2015.2,0.00744361]
[1743006101906,1.3945,2015.3,2015.2,0.00744361]
[1743006102107,2.0819,2015.3,2015.2,0.00744361]
[1743006105909,1.3945,2015.3,2015.2,1.35344361]
[1743006106706,1.3945,2015.3,2015.2,0.00744361]
[1743006107804,1.3945,2015.3,2014.7,53.406]
[1743006108003,0.6654,2015.2,2014.7,53.406]
[1743006108206,1.3623,2015.1,2014.7,54.7722]
[1743006108911,4.5701,2015.1,2014.7,51.41964361]
[1743006109206,4.5701,2015.1,2014.7,53.41344361]
[1743006109604,4.5701,2015.1,2014.7,54.80644361]
[1743006110013,1.3623,2015.1,2014.7,54.80644361]
[1743006110806,1.3623,2015.1,2014.8,0.6614]
[1743006111110,1.3623,2015.1,2014.9,1.393]
[1743006111306,0.7029,2015.3,2015.0,4.0337]
[1743006111505,2.0868,2015.3,2015.1,1.393]
[1743006112814,1.3839,2015.3,2015.1,1.393]
[1743006120918,1.3839,2015.3,2015.2,0.7016]
[1743006121115,1.3839,2015.3,2015.1,1.393]
[1743006123410,0.00744361,2015.6,2015.2,3.9094]
[1743006123624,1.3561,2015.9,2015.5,3.2078]
[1743006123927,2.6611,2015.9,2015.6,6.1514]
[1743006124223,2.6611,2015.9,2015.7,1.4086]
[1743006125223,2.6611,2015.9,2015.6,44.159]
[1743006125723,1.309,2015.8,2015.6,44.159]
[1743006125923,1.309,2015.8,2015.6,3.359]
[1743006127130,1.309,2015.8,2015.5,4.5835]
[1743006127325,1.309,2015.8,2015.6,4.7347]
[1743006128020,1.309,2015.8,2015.6,3.359]
[1743006128527,1.309,2015.8,2015.5,7.9631]
[1743006129123,1.309,2015.8,2015.5,3.2078]
[1743006130333,1.309,2015.8,2015.6,2.0709]
[1743006130633,1.309,2015.8,2015.7,1.3963]
[1743006131332,1.309,2015.8,2015.7,4.7543]
[1743006136332,0.00744361,2016.0,2015.7,4.7543]
[1743006136629,1.40224361,2016.0,2015.8,1.3258]
[1743006137235,1.40224361,2016.0,2015.7,4.7673]
[1743006137425,1.40224361,2016.0,2015.8,1.4093]
[1743006137631,1.40224361,2016.0,2015.7,3.358]
[1743006137929,1.40224361,2016.0,2015.7,4.7673]
[1743006138336,1.40224361,2016.0,2015.8,1.4093]
[1743006139439,0.00744361,2016.0,2015.8,1.4093]
[1743006139731,0.00744361,2016.0,2015.9,0.6575]
[1743006139937,0.00744361,2016.0,2015.9,7.049]
[1743006140840,1.3841,2016.2,2015.9,7.049]
[1743006141035,1.3841,2016.2,2016.1,3.2078]
[1743006141432,1.3841,2016.2,2016.1,4.6193]
[1743006141628,1.3841,2016.2,2016.1,1.4115]
[1743006141945,1.3841,2016.2,2015.8,6.5658]
[1743006142132,3.2078,2015.9,2015.7,0.68794361]
[1743006142328,1.3413,2015.8,2015.7,0.00744361]
[1743006143030,1.3413,2015.8,2015.4,3.357]
[1743006143233,0.7055,2015.7,2015.4,3.357]
[1743006143435,1.3004,2015.6,2015.4,3.357]
[1743006143944,4.5082,2015.6,2015.3,3.357]
[1743006145537,1.3004,2015.6,2015.3,3.357]
[1743006145735,1.3004,2015.6,2015.4,5.8497]
[1743006145930,4.5082,2015.6,2015.4,1.2995]
[1743006146135,4.5082,2015.6,2015.3,3.357]
[1743006146331,0.654,2015.5,2015.2,0.00744361]
[1743006146542,1.3128,2015.4,2015.2,0.00744361]
[1743006147041,0.6661,2015.3,2015.2,0.00744361]
[1743006147442,0.6661,2015.3,2015.2,1.33304361]
[1743006148444,0.6661,2015.3,2015.2,0.00744361]
[1743006150643,0.6661,2015.3,2015.2,1.39474361]
[1743006151049,0.6661,2015.3,2015.2,0.00744361]
[1743006153644,3.8739,2015.3,2015.2,0.00744361]
[1743006155449,1.3128,2015.4,2015.2,0.00744361]
[1743006155646,8.247,2017.1,2015.2,0.00744361]
[1743006155647,3.2078,2015.9,2015.3,3.358]
[1743006155843,3.2078,2015.9,2015.5,3.2078]
[1743006156043,1.3202,2015.8,2015.6,5.3727]
[1743006156349,1.3202,2015.8,2015.7,1.3026]
[1743006159242,2.0204,2015.8,2015.5,3.2078]
[1743006159445,2.6854,2015.8,2015.5,3.358]
[1743006159646,1.3783,2015.7,2015.5,3.358]
[1743006160552,1.3783,2015.7,2015.6,1.3839]
[1743006162042,1.3783,2015.7,2015.5,6.5658]
[1743006162246,1.3783,2015.7,2015.4,1.3482]
[1743006162454,1.3783,2015.7,2015.5,3.357]
[1743006162848,1.3783,2015.7,2015.4,1.3482]
[1743006163050,1.3783,2015.7,2015.4,3.357]
[1743006163246,0.647,2015.6,2015.4,3.357]
[1743006163454,1.3824,2015.5,2015.4,3.357]
[1743006164260,1.3824,2015.5,2015.4,4.0128]
[1743006166358,1.3824,2015.5,2015.4,3.357]
[1743006167455,1.3824,2015.5,2015.3,4.7052]
[1743006167664,1.3824,2015.5,2015.3,3.357]
[1743006167665,0.7096,2015.4,2015.3,3.357]
[1743006168054,0.7096,2015.4,2015.3,4.7896]
[1743006174458,0.7096,2015.4,2015.2,3.36444361]
[1743006174654,2.066,2015.3,2015.2,4.69274361]
[1743006177661,1.3924,2015.3,2015.2,4.69274361]
[1743006178062,3.2078,2015.6,2015.2,4.69274361]
[1743006178257,3.2078,2015.6,2015.3,1.4043]
[1743006178258,1.4037,2015.4,2015.3,1.4043]
[1743006178655,1.4037,2015.4,2015.2,0.00744361]
[1743006178861,4.6067,2015.3,2015.2,0.00744361]
[1743006180560,11.7747,2015.3,2014.6,0.39397663]
[1743006180760,11.7747,2015.3,2014.3,3.57726527]
[1743006180761,3.2078,2014.8,2014.4,1.3183]
[1743006180967,2.6857,2014.7,2014.4,1.3183]
[1743006181164,1.311,2014.6,2014.4,1.3183]
[1743006182764,0.00744361,2014.7,2014.4,1.3183]
[1743006182968,0.00744361,2014.7,2014.4,2.6683]
[1743006183168,4.5517,2015.2,2014.6,3.2078]
[1743006183469,3.2078,2015.2,2014.7,6.058]
[1743006183673,3.2078,2015.2,2014.8,1.2943]
[1743006184469,3.21524361,2015.2,2014.8,1.2943]
[1743006184762,1.4005,2015.1,2014.8,1.2943]
[1743006185866,0.00744361,2015.2,2014.9,3.2078]
[1743006186070,0.00744361,2015.2,2015.0,4.7336]
[1743006186265,0.00744361,2015.2,2015.1,1.3756]
[1743006186573,0.00744361,2015.2,2015.1,2.0747]
[1743006190474,0.00744361,2015.2,2015.1,1.3756]
[1743006190768,3.21524361,2015.2,2014.8,3.358]
[1743006190973,1.3304,2015.1,2014.8,4.7592]
[1743006191167,2.0293,2015.1,2014.8,4.7592]
[1743006191366,2.0293,2015.1,2014.9,1.4012]
[1743006191576,1.3193,2015.0,2014.9,1.4012]
[1743006192776,1.9743,2015.0,2014.9,1.4012]
[1743006194171,1.9743,2015.0,2014.8,3.358]
[1743006194370,1.9743,2015.0,2014.7,1.3582]
[1743006194371,1.3193,2014.9,2014.6,3.2078]
[1743006194579,1.3193,2014.9,2014.3,0.00744361]
[1743006194580,4.5271,2014.9,2014.5,3.358]
[1743006194981,1.404,2014.8,2014.5,3.358]
[1743006195377,0.6597,2014.7,2014.5,3.358]
[1743006195581,1.404,2014.6,2014.5,3.358]
[1743006196271,1.404,2014.6,2014.4,1.2983]
[1743006196885,3.2078,2014.9,2014.4,2.6683]
[1743006197191,4.6118,2014.9,2014.6,3.2078]
[1743006197374,4.6118,2014.9,2014.7,4.0394]
[1743006197570,4.6118,2014.9,2014.7,6.0593]
[1743006197784,4.6118,2014.9,2014.8,1.3071]
[1743006197980,4.6118,2014.9,2014.6,6.5658]
[1743006198187,1.3816,2014.8,2014.6,6.5658]
[1743006198485,1.3816,2014.8,2014.7,1.3071]
[1743006198980,1.3816,2014.8,2014.6,3.358]
[1743006199179,1.3816,2014.8,2014.4,0.7128]
[1743006199180,1.3816,2014.8,2014.5,4.6651]
[1743006199380,1.3816,2014.8,2014.6,1.3071]
[1743006199580,0.6507,2014.7,2014.6,1.3071]
[1743006199783,1.3816,2014.8,2014.6,1.3071]
[1743006202482,0.06780668,2014.7,2014.6,1.3071]
[1743006204890,0.06780668,2014.7,2014.5,3.358]
[1743006205089,1.4303,2014.6,2014.5,4.6836]
[1743006205490,1.4303,2014.6,2014.4,3.358]
[1743006205686,1.49810668,2014.6,2014.4,4.6836]
[1743006205882,1.49810668,2014.6,2014.5,1.3256]
[1743006206988,1.49810668,2014.6,2014.4,3.358]
[1743006207288,0.6616,2014.5,2014.4,3.358]
[1743006207494,1.3336,2014.5,2014.4,3.358]
[1743006207694,1.40140668,2014.5,2014.4,4.7822]
[1743006207877,1.40140668,2014.5,2014.4,1.4242]
[1743006211302,0.06780668,2014.5,2014.4,1.4242]
[1743006212288,3.2078,2014.9,2014.4,9.2642]
[1743006212493,1.3246,2015.0,2014.6,3.2078]
[1743006212698,1.3246,2015.0,2014.7,4.697]
[1743006213192,1.3246,2015.0,2014.8,1.3018]
[1743006220092,1.3246,2015.0,2014.8,1.4118]
[1743006220298,0.00744361,2015.2,2014.9,3.2078]
[1743006220500,0.00744361,2015.2,2015.0,4.7601]
[1743006220699,0.00744361,2015.2,2015.1,1.4021]
[1743006221198,0.00744361,2015.2,2015.1,2.7454]
[1743006221594,0.00744361,2015.2,2015.1,5.2054]
[1743006222191,3.2078,2015.8,2015.1,5.2054]
[1743006222398,1.3846,2015.7,2015.3,3.2078]
[1743006222598,1.3846,2015.7,2015.4,4.7486]
[1743006222803,1.3846,2015.7,2015.5,1.3906]
[1743006224305,1.3846,2015.7,2015.6,1.3406]
[1743006226095,0.00496244,2015.8,2015.6,1.3406]
[1743006226304,1.40626244,2015.8,2015.7,1.328]
[1743006227098,1.40626244,2015.8,2015.7,4.685]
[1743006227902,4.5975,2016.1,2015.7,4.685]
[1743006228098,4.5975,2016.1,2015.8,1.4078]
[1743006228099,1.3282,2016.0,2015.8,1.4078]
[1743006228909,3.2078,2016.1,2015.8,3.5378]
[1743006229211,5.9257,2016.5,2016.0,3.2078]
[1743006229409,1.3282,2016.4,2016.1,3.357]
[1743006229607,1.3282,2016.4,2016.2,1.4078]
[1743006230302,1.3282,2016.4,2016.0,0.6729]
[1743006230504,1.3282,2016.4,2016.0,3.357]
[1743006230702,1.3282,2016.4,2016.1,1.4078]
[1743006233807,1.3282,2016.4,2016.0,3.72186164]
[1743006234907,1.3282,2016.4,2016.1,1.3123]
[1743006237307,1.3282,2016.4,2016.0,3.72186164]
[1743006238711,1.3282,2016.4,2016.1,1.3764]
[1743006240617,1.3282,2016.4,2016.1,4.5842]
[1743006241123,1.3282,2016.4,2016.2,1.4039]
[1743006241319,1.3282,2016.4,2016.3,3.355]
[1743006243819,1.3282,2016.4,2015.8,3.2078]
[1743006244112,1.3282,2016.4,2015.9,3.355]
[1743006244317,1.3282,2016.4,2015.9,10.7434]
[1743006244615,1.3282,2016.4,2016.0,1.3749]
[1743006246508,1.3282,2016.4,2015.9,4.38084754]
[1743006246819,3.2078,2016.2,2015.9,11.25084754]
[1743006247016,2.1157,2016.1,2016.0,1.34]
[1743006247314,2.825,2016.1,2015.9,4.38084754]
[1743006247521,1.4071,2016.0,2015.9,9.12084754]
[1743006248421,1.4071,2016.0,2015.9,8.095]
[1743006248629,1.4071,2016.0,2015.9,3.355]
[1743006249417,1.4071,2016.0,2015.9,4.695]
[1743006251222,3.2078,2016.5,2015.9,4.695]
[1743006251528,4.5739,2016.5,2016.1,3.2078]
[1743006251820,3.2078,2016.5,2016.2,5.3494]
[1743006252028,3.2078,2016.5,2016.3,1.3461]
[1743006252627,3.2078,2016.5,2016.4,0.6534]
[1743006253018,1.3185,2016.8,2016.4,0.6534]
[1743006253220,1.3185,2016.8,2016.5,4.7154]
[1743006253414,1.3185,2016.8,2016.6,1.3604]
[1743006257339,1.3185,2016.8,2016.5,3.355]
[1743006257522,1.3185,2016.8,2016.5,4.7819]
[1743006259733,1.3185,2016.8,2016.6,1.3596]
[1743006262230,1.3185,2016.8,2016.5,4.7146]
[1743006262434,1.3185,2016.8,2016.6,1.9789]
[1743006262930,1.3185,2016.8,2016.7,1.3053]
[1743006266136,1.3185,2016.8,2016.6,0.6736]
[1743006266336,1.3185,2016.8,2016.6,1.9798]
[1743006266837,1.3185,2016.8,2016.6,1.3062]
[1743006267038,1.3185,2016.8,2016.5,4.6612]
[1743006267531,1.3185,2016.8,2016.5,4.0506]
[1743006267739,1.3185,2016.8,2016.5,3.355]
[1743006267934,1.3185,2016.8,2016.5,4.6505]
[1743006268237,1.3185,2016.8,2016.6,1.2955]
[1743006272841,3.2078,2017.3,2016.7,3.2078]
[1743006273031,3.2078,2017.3,2016.8,4.7539]
[1743006273032,1.9895,2017.2,2016.8,4.7539]
[1743006273232,1.3099,2017.1,2016.9,2.0973]
[1743006273436,1.3099,2017.1,2017.0,1.4009]
[1743006273643,1.3099,2017.1,2016.9,41.4964]
[1743006273843,0.7113,2017.0,2016.9,42.8978]
[1743006274140,0.7113,2017.0,2016.9,1.4014]
[1743006274328,0.7113,2017.0,2016.7,3.8879]
[1743006274530,2.0768,2016.9,2016.8,3.353]
[1743006274727,2.0768,2016.9,2016.8,4.7544]
[1743006275639,7.9068,2016.9,2016.6,40.8]
[1743006275844,3.2078,2016.7,2016.4,0.00744361]
[1743006276044,2.0883,2016.6,2016.4,0.00744361]
[1743006276345,1.3972,2016.5,2016.4,0.00744361]
[1743006285151,1.3972,2016.5,2016.4,0.70514361]
[1743006288450,1.3972,2016.5,2016.4,0.00744361]
[1743006293958,1.3972,2016.5,2016.4,1.31814361]
[1743006295858,3.2078,2016.7,2016.4,4.67014361]
[1743006296055,3.2078,2016.7,2016.5,0.6602]
[1743006296255,3.2078,2016.7,2016.6,1.3889]
[1743006296758,4.5018,2016.7,2016.6,1.3889]
[1743006297161,1.294,2016.7,2016.6,1.3889]
[1743006300658,3.2078,2017.1,2016.6,12.6289]
[1743006300863,1.4185,2017.0,2016.8,3.2078]
[1743006301066,0.6647,2017.2,2016.9,1.3162]
[1743006301365,1.4279,2017.1,2017.0,3.352]
[1743006301664,1.4279,2017.1,2017.0,4.7593]
[1743006302862,1.4279,2017.1,2017.0,3.352]
[1743006303454,1.4279,2017.1,2017.0,4.7593]
[1743006304666,1.4279,2017.1,2017.0,3.352]
[1743006304966,4.6357,2017.1,2016.8,4.6446]
[1743006305167,0.6898,2017.0,2016.7,3.352]
[1743006305367,0.6586,2016.9,2016.7,4.6446]
[1743006305663,0.6586,2016.9,2016.8,1.2926]
[1743006308061,0.6898,2017.0,2016.8,1.2926]
[1743006308263,0.6898,2017.0,2016.8,1.9801]
[1743006308464,3.2078,2017.1,2016.9,0.6983]
[1743006308770,3.2078,2017.1,2017.0,1.304]
[1743006313272,0.6802,2017.2,2017.0,4.655]
[1743006313775,0.6802,2017.2,2017.1,1.4162]
[1743006314171,3.2078,2017.5,2017.1,1.4162]
[1743006314473,4.5142,2017.5,2017.1,5.3062]
[1743006314864,4.5142,2017.5,2017.2,1.4162]
[1743006315468,1.3064,2017.5,2017.2,1.4162]
[1743006315768,1.3064,2017.5,2017.3,4.024]
[1743006315973,1.3064,2017.5,2017.4,1.4162]
[1743006319872,1.3064,2017.5,2017.4,4.624]
[1743006320278,1.3064,2017.5,2017.4,1.4162]
[1743006320974,1.3064,2017.5,2017.3,4.024]
[1743006321174,1.3064,2017.5,2017.3,5.3458]
[1743006321576,1.3064,2017.5,2017.3,1.3218]
[1743006321880,1.3064,2017.5,2017.2,4.6718]
[1743006322874,1.3064,2017.5,2017.3,1.3879]
[1743006323283,1.3064,2017.5,2017.2,3.35]
[1743006323476,1.3064,2017.5,2017.2,4.7379]
[1743006323684,1.4219,2017.4,2017.2,4.7379]
[1743006324585,4.6297,2017.4,2017.1,3.2078]
[1743006324779,4.6297,2017.4,2017.1,11.5378]
[1743006324986,1.4219,2017.3,2017.1,11.5378]
[1743006325385,0.6654,2017.2,2017.1,11.5378]
[1743006325580,0.6654,2017.2,2017.1,6.5578]
[1743006325775,1.4219,2017.3,2017.1,6.5578]
[1743006325980,1.4219,2017.3,2017.2,1.398]
[1743006329691,0.6654,2017.6,2017.2,1.398]
[1743006329890,1.2918,2017.4,2017.2,1.398]
[1743006330789,1.2918,2017.4,2017.2,2.688]
[1743006330991,1.2918,2017.4,2017.2,1.398]
[1743006331198,1.2918,2017.4,2017.3,1.4315]
[1743006331581,0.13070781,2017.8,2017.3,3.3615]
[1743006331798,0.6781,2017.9,2017.5,3.2078]
[1743006332086,0.6781,2017.9,2017.6,2.0286]
[1743006332292,0.6781,2017.9,2017.7,4.7299]
[1743006332483,0.6781,2017.9,2017.8,1.3809]
[1743006333493,3.2078,2018.3,2017.8,4.5887]
[1743006333790,0.6462,2018.2,2017.8,4.5887]
[1743006334089,0.6462,2018.2,2017.9,1.3809]
[1743006334285,0.6462,2018.2,2018.0,4.0109]
[1743006334592,0.6462,2018.2,2018.1,1.3809]
[1743006335193,0.6462,2018.2,2018.0,3.349]
[1743006335393,2.0675,2018.1,2017.9,3.349]
[1743006335595,1.3694,2018.0,2017.9,3.349]
[1743006335894,1.3694,2018.0,2017.8,3.2078]
[1743006336193,0.6462,2017.9,2017.8,3.2078]
[1743006336392,0.6462,2017.9,2017.8,4.574]
[1743006339088,0.6462,2017.9,2017.8,3.2078]
[1743006339992,0.6462,2017.9,2017.8,4.6144]
[1743006341294,1.3694,2018.0,2017.8,1.4066]
[1743006341504,1.3694,2018.0,2017.9,1.3943]
[1743006352209,0.6981,2018.1,2017.9,1.3943]
[1743006352210,0.6452,2018.2,2017.9,1.3943]
[1743006352510,1.3077,2018.1,2018.0,0.6562]
[1743006352912,0.6452,2018.2,2018.0,4.7174]
[1743006353206,1.408,2018.3,2018.1,1.3627]
[1743006353806,1.408,2018.3,2018.1,4.5705]
[1743006354006,12.62361627,2018.5,2018.1,4.5705]
[1743006354201,14.03161627,2018.5,2018.2,42.1627]
[1743006354410,14.03161627,2018.5,2018.3,1.3627]
[1743006354617,14.03161627,2018.5,2018.4,0.6864]
[1743006354809,13.28291627,2018.5,2018.4,0.6864]
[1743006355809,13.28291627,2018.5,2018.3,1.3627]
[1743006356309,13.28291627,2018.5,2018.2,3.347]
[1743006356516,3.2078,2018.3,2018.2,4.7308]
[1743006359115,13.28291627,2018.5,2018.2,4.7308]
[1743006359306,13.28291627,2018.5,2018.3,1.3995]
[1743006361318,12.62361627,2018.5,2018.3,1.3995]
[1743006362113,13.28661627,2018.5,2018.3,1.3995]
[1743006363717,13.28661627,2018.5,2018.3,2.0844]
[1743006364216,13.28661627,2018.5,2018.4,1.4102]
[1743006365522,12.62361627,2018.5,2018.4,1.4102]
[1743006365716,12.62361627,2018.5,2018.4,2.1221]
[1743006369421,13.27261627,2018.5,2018.4,2.1221]
[1743006370524,3.9014,2018.9,2018.4,5.3299]
[1743006370735,3.9014,2018.9,2018.5,4.6543]
[1743006370923,3.9014,2018.9,2018.6,1.3521]
[1743006371128,3.9014,2018.9,2018.6,2.0391]
[1743006371330,3.9014,2018.9,2018.6,1.3521]
[1743006371632,3.9014,2018.9,2018.7,1.3521]
[1743006371925,3.9014,2018.9,2018.5,3.345]
[1743006372124,3.9014,2018.9,2018.4,44.01524361]
[1743006372327,3.9014,2018.9,2018.5,2.7317]
[1743006372526,3.9014,2018.9,2018.6,4.6971]
[1743006372830,3.9014,2018.9,2018.7,1.3521]
[1743006373733,1.4122,2018.8,2018.7,1.3521]
[1743006377741,0.6495,2019.0,2018.7,4.5799]
[1743006378044,0.6495,2019.0,2018.7,4.5599]
[1743006378345,1.4119,2018.9,2018.8,1.3944]
[1743006379548,1.4119,2018.9,2018.8,2.0489]
[1743006380142,0.6703,2019.2,2018.8,2.0489]
[1743006380346,1.3398,2019.1,2018.9,2.0807]
[1743006380539,1.3398,2019.1,2019.0,1.3838]
[1743006381443,1.3398,2019.1,2018.9,3.344]
[1743006383143,1.3398,2019.1,2019.0,1.3244]
[1743006385150,1.3398,2019.1,2019.0,1.9773]
[1743006386447,1.3398,2019.1,2019.0,5.1851]
[1743006386647,1.3398,2019.1,2019.0,1.9773]
[1743006386843,1.3398,2019.1,2019.0,5.1851]
[1743006387246,1.3398,2019.1,2019.0,1.9773]
[1743006389754,1.3398,2019.1,2019.0,5.1851]
[1743006389953,1.3398,2019.1,2019.0,1.9773]
[1743006391150,1.3398,2019.1,2019.0,5.1851]
[1743006391843,3.2078,2019.6,2019.0,50.7351]
[1743006392050,0.671,2019.5,2019.1,0.6508]
[1743006392248,1.3037,2019.4,2019.2,4.6664]
[1743006392446,1.3037,2019.4,2019.3,1.3234]
[1743006397252,1.3037,2019.4,2019.3,1.71380653]
[1743006398353,0.671,2019.5,2019.3,1.71380653]
[1743006398553,1.2948,2019.5,2019.4,2.0789]
[1743006398754,1.2948,2019.5,2019.4,2.7476]
[1743006399064,1.2948,2019.5,2019.4,43.5476]
[1743006399863,2.92332842,2019.6,2019.4,43.92782318]
[1743006400069,6.8341057,2020.4,2019.5,7.9604]
[1743006400360,1.2948,2020.3,2019.6,1.4106]
[1743006400557,1.2948,2020.3,2019.7,0.00742501]
[1743006401062,1.2948,2020.3,2019.7,1.41802501]
[1743006401257,3.2078,2020.1,2019.7,0.00742501]
[1743006401567,2.7322,2020.0,2019.7,0.00742501]
[1743006401858,1.3046,2019.9,2019.7,0.00742501]
[1743006410965,4.6456,2019.9,2019.7,0.00742501]
[1743006411371,1.4261,2019.8,2019.7,0.00742501]
[1743006414461,4.6339,2019.8,2019.7,0.00742501]
[1743006414661,7.1339,2019.8,2019.4,49.929]
[1743006414872,1.3866,2019.7,2019.4,49.929]
[1743006415068,0.6499,2019.6,2019.4,49.929]
[1743006415267,1.3866,2019.5,2019.3,1.3181]
[1743006415770,4.5944,2019.5,2019.3,1.3181]
[1743006416162,1.3866,2019.4,2019.3,1.3181]
[1743006417766,2.0472,2019.4,2019.3,1.3181]
[1743006417963,2.0472,2019.4,2019.2,0.00742501]
[1743006418163,1.3543,2019.3,2019.2,0.00742501]
[1743006420375,2.3543,2019.3,2019.2,0.00742501]
[1743006421573,2.3543,2019.3,2018.8,3.2078]
[1743006421778,2.0233,2019.2,2019.0,1.3295]
[1743006422079,1.34,2019.1,2019.0,1.3295]
[1743006422272,1.9907,2019.1,2019.0,1.3295]
[1743006422977,1.0,2019.3,2019.0,1.3295]
[1743006423180,1.0,2019.3,2019.1,3.2078]
[1743006423472,1.0,2019.3,2019.2,2.0348]
[1743006423673,1.0,2019.3,2019.2,2.7343]
[1743006436578,1.0,2019.3,2019.2,1.3804]
[1743006436777,1.708,2019.3,2019.2,1.3804]
[1743006436973,1.0,2019.3,2019.2,1.3804]
[1743006437179,1.0,2019.3,2019.2,5.3999]
[1743006438785,1.0,2019.3,2019.2,1.3804]
[1743006438982,1.0,2019.3,2018.9,0.6755]
[1743006438983,1.708,2019.3,2018.9,0.6755]
[1743006439182,2.1255,2019.2,2018.9,1.3924]
[1743006439381,1.4096,2019.1,2018.9,1.3924]
[1743006443585,1.4096,2019.1,2018.8,0.00742501]
[1743006443785,1.4096,2019.1,2018.8,1.41222501]
[1743006450179,1.4096,2019.1,2018.8,0.00742501]
[1743006450384,3.338,2019.0,2018.8,0.00742501]
[1743006450589,1.9847,2018.9,2018.8,0.00742501]
[1743006450793,2.686,2018.9,2018.8,0.00742501]
[1743006453807,5.8938,2018.9,2018.8,0.00742501]
[1743006456108,5.8938,2018.9,2018.4,1.3479]
[1743006456306,1.3139,2018.8,2018.4,1.3479]
[1743006456808,1.3139,2018.8,2018.5,3.2078]
[1743006457008,1.3139,2018.8,2018.6,1.4122]
[1743006459516,1.3139,2018.8,2018.7,0.6607]